Cogmind - Beta 14 @@@ ROGUE MODE // 2024.09.29 @ 18:27:45 Player: Some Pennies Result: Destroyed by H-66 Slayer with Gauss Rifle Performance ------------- Evolutions (5) 2500 Regions Visited (19) 3800 Robots Destroyed (367) 1835 Value Destroyed (16834) 16834 Prototype IDs (66) 1320 Alien Tech Used (0) 0 Bonus (8903) 8903 TOTAL SCORE: 35192 Bonus ------- Triggered High Security 500 High Alert Combat Kills 5226 Follower Combat Kills 2858 Network Hubs Disabled 400 Met Data Miner 300 Met Imprinter 300 Destroyed Z-Imprinter 1000 Triggered Deep Caves Wall 500 Exposed GOLEM Chamber 500 Met Zhirov 300 Built Enhanced Grunts 300 A7 Reached Mainframe 300 Met R17 at Cetus 500 Friendly Fire -4081 Cogmind --------- Core Integrity 0/1000 Matter 77/300 Energy 21/1100 System Corruption 24% Temperature Cool (0) Movement Treading (240) Ox1 Location -5/Hub_04(d) Parts ------- > --- POWER (2+1) ------ Assembled Flux Generator > --- PROPULSION (4+1) - Centrium Heavy Treads (+) > --- UTILITY (9+1) ---- Huge Storage Unit Assembled Biocell Array Modified TNC (+) Assembled Alloy Armor Advanced Force Field GOLEM Unit Rainbow Chip > --- WEAPON (2+1) ----- (None) > --- INVENTORY (25) --- Advanced Cooling System Zionite Biocell (0) Zionite Biocell (0) Zionite Weapon Casing Zionite Weapon Casing Advanced Hacking Suite GOLEM Unit Advanced Variable Charge Gun Missile Launcher Improved Remote Datajack Peak State ------------ > --- POWER ------------ Assembled Flux Generator > --- PROPULSION ------- Centrium Heavy Treads Assembled Alloy Leg Assembled Alloy Leg > --- UTILITY ---------- Assembled Nanovents Assembled Nanovents Huge Storage Unit Assembled Biocell Array Assembled Combat Suite Centrium Medium Armor Plating Assembled Alloy Armor GOLEM Unit > --- WEAPON ----------- Assembled Focal Cannon Assembled Focal Cannon > --- INVENTORY -------- Centrium Heavy Treads Centrium Heavy Treads Advanced Cooling System Zionite Biocell Zionite Biocell Modified TNC Zionite Weapon Casing Zionite Weapon Casing Centrium Medium Armor Plating Centrium Medium Armor Plating Centrium Medium Armor Plating Advanced Force Field Advanced Hacking Suite GOLEM Unit GOLEM Unit Rainbow Chip Advanced Variable Charge Gun Missile Launcher Rocket Array Improved Remote Datajack [Rating: 160] Favorites ----------- Power Assembled Flux Generator Engine Improved Deuterium Engine Power Core Enhanced Nuclear Core Reactor Assembled Flux Generator Propulsion Assembled Alloy Leg Treads Light Treads Leg Assembled Alloy Leg Wheel Subdweller Monowheel Hover Unit Zionite Glidesys I Utility Huge Storage Unit Device GOLEM Unit Storage Huge Storage Unit Processor Advanced Targeting Computer Hackware Hacking Suite Protection Assembled Alloy Armor Weapon Assembled Focal Cannon Energy Gun Subdweller Laser Energy Cannon Assembled Focal Cannon Ballistic Gun Battle Rifle Ballistic Cannon Battle Cannon Launcher Rocket Array Special Weapon Molecular Deconstructor Slashing Weapon Ripper Special Melee Weapon Improved Datajack Build | -11 -10 -10 -8 -7 -7 -7 -7 -7 -6 -6 -6 -6 -6 -5 -5 -5 -5 -5 -5 ------- Run | Yrd Mat Sub Mat Fac Low Low Zio Dee Pro Fac Low Low Dat Pro Fac Ext Cet Arc Hub Slots Evolved 10 | . . . 4 2 . . . . . 2 . . . . 2 . . . . Power 1 | . . . . 1 . . . . . . . . . . . . . . . Propulsion 2 | . . . 2 . . . . . . . . . . . . . . . . Utility 7 | . . . 2 1 . . . . . 2 . . . . 2 . . . . Weapon . | . . . . . . . . . . . . . . . . . . . . Parts Attached 324 | 7 1 17 58 31 2 16 25 45 8 14 9 1 . 11 30 11 10 . 28 Power 19 | 1 . 1 5 8 . . 2 2 . . . . . . . . . . . Engine 11 | 1 . 1 4 4 . . 1 . . . . . . . . . . . . Core 6 | . . . 1 4 . . 1 . . . . . . . . . . . . Reactor 2 | . . . . . . . . 2 . . . . . . . . . . . Propulsion 69 | 2 . 2 20 8 . 3 1 10 2 4 2 1 . 2 6 1 2 . 3 Treads 54 | 2 . . 13 8 . 3 1 6 1 3 2 1 . 2 6 1 2 . 3 Leg 9 | . . . 5 . . . . 2 1 1 . . . . . . . . . Wheel 4 | . . 2 2 . . . . . . . . . . . . . . . . Hover 2 | . . . . . . . . 2 . . . . . . . . . . . Flight . | . . . . . . . . . . . . . . . . . . . . Utility 148 | 2 . 4 17 5 2 8 11 17 6 10 7 . . 9 23 8 6 . 13 Device 47 | 1 . 2 4 2 . 2 3 5 3 2 2 . . 3 8 4 2 . 4 Storage 12 | 1 . 1 3 2 . . . 1 . 1 . . . 1 1 . . . 1 Processor 8 | . . . 1 . . . 3 . 1 1 . . . . . . . . 2 Hackware 7 | . . . 1 . . . . . . . . . . . 5 . 1 . . Protection 74 | . . 1 8 1 2 6 5 11 2 6 5 . . 5 9 4 3 . 6 Artifact . | . . . . . . . . . . . . . . . . . . . . Weapon 88 | 2 1 10 16 10 . 5 11 16 . . . . . . 1 2 2 . 12 Energy Gun 23 | 1 . 5 4 . . . . 8 . . . . . . . . 2 . 3 Energy Cannon 30 | . . 1 10 6 . 3 3 6 . . . . . . . 1 . . . Ballistic Gun 4 | 1 . 2 1 . . . . . . . . . . . . . . . . Ballistic Cannon 1 | . . 1 . . . . . . . . . . . . . . . . . Launcher 17 | . . . 1 3 . 1 . 2 . . . . . . 1 1 . . 8 Special Weapon 11 | . 1 1 . 1 . 1 6 . . . . . . . . . . . 1 Impact Weapon . | . . . . . . . . . . . . . . . . . . . . Slashing Weapon 1 | . . . . . . . 1 . . . . . . . . . . . . Piercing Weapon . | . . . . . . . . . . . . . . . . . . . . Special Melee Weapon 1 | . . . . . . . 1 . . . . . . . . . . . . Unidentified Prototypes 29 | . . . 3 2 . 2 4 12 . 1 1 . . . . . 4 . . Corrupted Parts 3 | . . . . . . . . . . . . . . . . . 2 . 1 System Corruption 15 | . . . . . . . . . . . . . . . . . 10 . 5 Parts Lost 31 | . . 3 2 1 2 . . 7 1 . . . . . . . . . 15 Power 2 | . . . . . . . . 1 . . . . . . . . . . 1 Propulsion 9 | . . 1 1 . . . . 3 . . . . . . . . . . 4 Utility 16 | . . 1 1 . 2 . . 3 1 . . . . . . . . . 8 Weapon 4 | . . 1 . 1 . . . . . . . . . . . . . . 2 Highest Loss Streak 15 | . . 1 2 1 2 . . 2 1 . . . . . . . . . 15 To Critical Strikes . | . . . . . . . . . . . . . . . . . . . . Average Slot Usage (%) 86 | . 100 91 97 99 99 92 82 87 83 80 81 85 78 84 87 82 73 76 74 Engine 4 | . 14 14 8 9 15 15 8 . . . . . . . . . . . . Core 1 | . . . . 4 . . 5 4 . . . . . . . . . . . Reactor 3 | . . . . . . . . 5 6 6 5 6 4 5 5 5 5 5 4 Treads 18 | . 28 20 25 29 30 30 30 21 7 10 12 13 13 13 11 11 5 5 5 Leg 8 | . . . 7 . . . . 5 23 15 13 13 10 12 10 11 11 11 10 Device 10 | . 14 5 10 14 9 7 7 7 12 6 8 13 13 12 16 17 17 23 20 Storage 10 | . 14 6 9 7 7 7 7 9 15 13 13 13 13 13 10 11 11 11 10 Hackware 1 | . . . 2 7 7 . . . . . . . . . 5 . . . . Protection 10 | . . 7 7 7 11 14 9 11 1 12 12 13 13 12 11 11 10 5 8 Energy Gun 1 | . 14 15 1 . . . . 5 . . . . . . . . . . . Energy Cannon 11 | . . 7 15 14 15 14 5 12 15 13 12 12 8 13 10 10 7 11 9 Peak Build Rating 160 | 7 7 15 40 47 46 64 76 110 113 122 128 124 124 129 145 146 156 156 160 Average Rating 89 | 5 7 12 32 43 45 51 60 82 109 118 118 123 111 122 134 140 147 156 150 On Entrance 84 | . 7 7 14 32 46 46 55 57 110 109 119 123 124 124 125 143 141 156 156 Naked Turns . | . . . . . . . . . . . . . . . . . . . . Heaviest Build 206 | 13 13 33 56 130 130 135 135 154 155 172 180 180 180 185 194 206 186 186 188 Greatest Support 160 | 40 40 40 80 80 80 89 97 99 84 80 60 60 60 60 80 60 60 60 160 Greatest Overweight (x) 59 | 2 . 1 1 1 1 1 1 4 3 2 5 2 59 46 5 3 5 3 3 Average Overweight (x) 1 | . . . . . 1 1 1 1 1 2 2 2 9 2 2 2 2 3 2 Largest Inventory Capacity 25 | 8 8 8 15 25 25 25 25 25 25 25 25 25 25 25 25 25 25 25 25 Average Capacity 22 | 7 8 6 13 21 25 25 25 25 25 25 25 25 25 25 24 25 25 25 25 Most Carried 25 | 4 4 8 15 25 25 25 25 25 25 25 25 25 25 25 25 25 25 25 25 Average Carried 22 | 2 4 5 13 21 23 24 24 23 24 24 24 24 25 24 24 24 24 25 23 Final Capacity 25 | 8 8 8 15 25 25 25 25 25 25 25 25 25 25 25 25 25 25 25 25 Final Carried 25 | 4 4 8 15 25 25 25 25 25 25 25 25 25 25 25 24 25 25 25 11 Class Distribution -------------------- 52% | Golem 18% | Mutant 17% | Scavenger-Mutant 4% | Tank 3% | Subdweller-Mutant Dominant Class ---------------- Mutant | -10/Materials Subdweller-Mutant | -10/Subcaves Scavenger-Mutant | -8/Materials Scavenger-Mutant | -7/Factory Scavenger-Mutant | -7/Lower Caves Scavenger-Mutant | -7/Lower Caves Mutant | -7/Zion Tank | -7/Deep Caves Golem | -6/Proximity Caves Golem | -6/Factory Golem | -6/Lower Caves Golem | -6/Lower Caves Golem | -6/Data Miner Golem | -5/Proximity Caves Golem | -5/Factory Golem | -5/Extension Golem | -5/Cetus Commander-Golem | -5/Archives Golem | -5/Hub_04(d) Resources | -11 -10 -10 -8 -7 -7 -7 -7 -7 -6 -6 -6 -6 -6 -5 -5 -5 -5 -5 -5 ----------- Run | Yrd Mat Sub Mat Fac Low Low Zio Dee Pro Fac Low Low Dat Pro Fac Ext Cet Arc Hub Matter Collected 6689 | 197 . 354 936 411 32 226 2247 606 102 167 90 10 . 110 358 198 135 34 476 Remotely . | . . . . . . . . . . . . . . . . . . . . Salvage Created 19971 | 141 . 397 3586 1833 219 115 . 1590 302 1334 745 1175 . 817 3614 1478 189 34 2402 Parts 790 | 8 . 26 175 92 8 5 . 51 13 55 22 31 . 17 143 54 8 2 80 Haulers Intercepted 15 | . . . 6 2 . . . . . 2 1 . . . 1 1 . . 2 Recyclers Shooed 6 | . . . 1 2 . . . . . . . . . . 3 . . . . Parts Field Recycled . | . . . . . . . . . . . . . . . . . . . . Retrieved Matter . | . . . . . . . . . . . . . . . . . . . . Parts Self-Destructed 106 | . . 18 . . 8 6 . . 11 . 20 26 . 17 . . . . . Prevented 2 | . . . . . . 1 . . . . 1 . . . . . . . . Kills | -11 -10 -10 -8 -7 -7 -7 -7 -7 -6 -6 -6 -6 -6 -5 -5 -5 -5 -5 -5 ------- Run | Yrd Mat Sub Mat Fac Low Low Zio Dee Pro Fac Low Low Dat Pro Fac Ext Cet Arc Hub Combat Hostiles Destroyed 344 | . . 11 54 36 4 2 . 49 6 15 13 17 . 12 47 17 2 . 59 Guns 21 | . . 8 6 . . . . 4 . . . . . . . . . . 3 Cannons 214 | . . 3 41 27 3 1 . 2 6 15 13 17 . 12 40 16 2 . 16 AOE 95 | . . . 5 6 . 1 . 35 . . . . . . 7 1 . . 40 Classes Destroyed 28 | 2 . 3 13 1 . 1 . 4 . . . . . . 1 1 . . 2 Worker 4 | . . . . . . . . . . . . . . . 2 . . . 2 Builder 10 | . . . 4 1 . . . . . 3 . . . . 1 1 . . . Tunneler 4 | 2 . . 1 . . . . . . 1 . . . . . . . . . Hauler 15 | . . . 6 2 . . . . . 2 1 . . . 1 1 . . 2 Recycler 14 | 1 . . 6 . . . . . . 1 . . . . 5 1 . . . Mechanic 4 | . . . 1 . . . . . . . . . . . . . . . 3 Operator 6 | . . . 5 . . . . . . . . . . . . 1 . . . Watcher 17 | . . . 4 3 . . . . . 2 . . . . 3 2 1 . 2 Swarmer 30 | . . 3 3 7 . . . . 1 . 4 4 . 3 5 . . . . Saboteur 3 | . . . . . . . . . . . . . . . . . . . 3 Grunt 141 | . . . 34 13 3 . . . 1 7 9 7 . 6 23 10 . . 28 Brawler 8 | . . . 1 1 . . . . . . . 1 . . 1 1 . . 3 Duelist 9 | . . . 1 1 . . . . . . . 4 . . . . . . 3 Protector 5 | . . . 1 . . . . . . . . . . . . 1 . . 3 Sentry 35 | . . . 8 5 . . . . 1 3 . 1 . 1 4 4 . . 8 Demolisher 1 | . . . . . . . . . . . . . . . . . . . 1 Specialist 6 | . . . 4 . . . . . . . . . . . . . . . 2 Hunter 16 | . . . 1 3 1 1 . . 2 1 . . . 2 3 . . . 2 Programmer 26 | . . . . 6 . 1 . . 1 4 . . . . 11 . . . 3 Heavy 1 | . . . 1 . . . . . . . . . . . . . . . . Behemoth 1 | . . . . . . . . . . . . . . . . 1 . . . Cetus Guard 2 | . . . . . . . . . . . . . . . . . 2 . . Lightning 3 | . . . . . . . . . . . . . . . . . . . 3 Artisan 1 | . . 1 . . . . . . . . . . . . . . . . . Subdweller 8 | . . 8 . . . . . . . . . . . . . . . . . Z-Technician 3 | . . . . . . . . 3 . . . . . . . . . . . Z-Light 3 | . . . . . . . . 3 . . . . . . . . . . . Samaritan 3 | . . . . . . 1 . . . . . 2 . . . . . . . Assembler 2 | . . . . . . . . 2 . . . . . . . . . . . Assembled 37 | . . . . . . . . 37 . . . . . . . . . . . Golem 8 | . . . . . . . . 8 . . . . . . . . . . . Best Kill Streak 39 | 3 . 4 9 4 3 1 . 39 3 4 4 5 . 5 9 3 1 . 20 Combat Bots Only 37 | . . 4 8 4 3 1 . 37 3 3 4 5 . 5 7 3 1 . 18 Max Kills in Single Turn 28 | 2 . 2 3 3 1 1 . 28 1 2 1 1 . 1 6 1 1 . 5 Gunslinging 1 | . . 1 . . . . . . . . . . . . . . . . . Exploded 27 | . . . 2 3 . 1 . 27 . . . . . . 5 1 . . 5 Melee . | . . . . . . . . . . . . . . . . . . . . Uniques/NPCs Destroyed 3 | . . . . . . . . 2 . . . . . . . . 1 . . Z-Imprinter (-7/Deep Caves) Warbot (-7/Deep Caves) A7 (-5/Cetus) Combat | -11 -10 -10 -8 -7 -7 -7 -7 -7 -6 -6 -6 -6 -6 -5 -5 -5 -5 -5 -5 -------- Run | Yrd Mat Sub Mat Fac Low Low Zio Dee Pro Fac Low Low Dat Pro Fac Ext Cet Arc Hub Hostile Shots Fired 1994 | . . 45 240 210 38 4 . 88 81 169 90 60 . 107 230 57 24 . 551 Missed 620 | . . 13 85 72 8 2 . 26 26 49 26 18 . 34 86 32 11 . 132 Damage Taken 21621 | . . 784 2557 1343 471 31 . 2130 777 1098 949 322 . 804 1978 312 191 . 7874 Core 1990 | . . 82 314 79 32 . . 217 45 59 45 13 . 93 199 8 . . 804 Absorbed by Shields 2547 | . . . . 533 19 . . . . . . 354 . 316 364 143 117 . 701 Reduced by Siege Mode 110 | . . . . . . . . . . . . . . . . . . . 110 Redirected to Shielding 305 | . . . . . . 10 . 295 . . . . . . . . . . . Ignored by Resistances 2526 | . . . . . . . . . . 238 194 138 . 237 461 103 64 . 1091 Regen/Repaired (Parts) 129 | . . . 41 . . . . . . 40 . . . . 48 . . . . Core Remaining (%) 66 | 100 . 67 42 . . . . . 46 . . . . 75 . . . . . Volleys Fired 1011 | 15 3 60 182 96 16 2 4 71 37 75 54 53 . 58 131 55 21 2 76 Largest 4 | 2 1 2 2 2 2 2 1 4 2 2 2 2 . 2 2 2 2 2 2 Hottest 299 | 70 100 140 140 130 130 130 . 299 50 50 50 50 . 50 50 123 240 50 125 Shots Fired 1902 | 30 3 93 358 190 32 4 4 150 73 142 108 106 . 116 234 108 37 4 110 Gun 210 | 30 . 74 59 . . . . 40 . . . . . . . . 1 . 6 Cannon 1644 | . . 18 293 187 32 3 . 105 73 142 108 106 . 116 232 107 36 4 82 Launcher 39 | . . . 6 3 . 1 . 5 . . . . . . 2 1 . . 21 Special 9 | . 3 1 . . . . 4 . . . . . . . . . . . 1 Kinetic 58 | 15 . 20 23 . . . . . . . . . . . . . . . . Thermal 1731 | 15 3 73 327 187 32 3 . 78 73 142 108 106 . 116 232 107 37 4 88 Explosive 39 | . . . 6 3 . 1 . 5 . . . . . . 2 1 . . 21 Electromagnetic 56 | . . . 2 . . . . 54 . . . . . . . . . . . Phasic 13 | . . . . . . . . 13 . . . . . . . . . . . Robot Hit Streak 26 | 3 . 13 20 17 10 1 . 20 8 14 13 13 . 14 26 13 15 19 22 Robot Miss Streak 6 | 4 . 1 3 4 3 1 . 5 1 4 2 4 . 1 4 4 2 . 6 Penetration Max . | . . . . . . . . . . . . . . . . . . . . Secondary Targets 4 | . . 3 1 . . . . . . . . . . . . . . . . Max Gunslinging Chain 1 | . . 1 1 . . . . . . . . . . . . . . . . Shots Hit Robots 1162 | 14 . 56 256 131 21 1 1 86 23 82 49 52 . 57 151 68 31 4 79 Core Hits 922 | 4 . 20 125 62 6 3 . 128 7 26 16 23 . 18 100 53 13 2 316 Critical Kills 3 | . . . 1 2 . . . . . . . . . . . . . . . Critical Parts Destroyed . | . . . . . . . . . . . . . . . . . . . . Critical Strikes 8 | 2 . 1 1 2 . . . 2 . . . . . . . . . . . Burn 3 | 2 . . . . . . . 1 . . . . . . . . . . . Meltdown 3 | . . . 1 2 . . . . . . . . . . . . . . . Destroy 1 | . . 1 . . . . . . . . . . . . . . . . . Intensify 1 | . . . . . . . . 1 . . . . . . . . . . . Melee Attacks 2 | . . . . . . . 2 . . . . . . . . . . . . Impact . | . . . . . . . . . . . . . . . . . . . . Slashing 1 | . . . . . . . 1 . . . . . . . . . . . . Piercing . | . . . . . . . . . . . . . . . . . . . . Sneak Attacks 1 | . . . . . . . 1 . . . . . . . . . . . . Combat Hostiles . | . . . . . . . . . . . . . . . . . . . . Follow-up Attacks . | . . . . . . . . . . . . . . . . . . . . Damage Inflicted 54933 | 191 . 998 7678 4441 566 94 . 4609 985 4118 2150 2406 . 2648 7653 4015 1421 161 10799 Guns 2554 | 191 . 811 904 . . . . 532 . . . . . . . . . . 116 Cannons 38861 | . . 187 5885 3715 566 32 . 1597 985 3941 2150 2403 . 2648 6980 3277 1421 161 2913 Explosions 13061 | . . . 883 578 . 50 . 2480 . . . . . . 628 682 . . 7760 Melee . | . . . . . . . . . . . . . . . . . . . . Ramming 457 | . . . 6 148 . 12 . . . 177 . 3 . . 45 56 . . 10 Kinetic 714 | 102 . 272 340 . . . . . . . . . . . . . . . . Thermal 39627 | 89 . 726 6463 3715 566 32 . 1041 985 3941 2150 2403 . 2648 6980 3277 1421 161 3029 Explosive 12576 | . . . 842 578 . 50 . 2480 . . . . . . 628 682 . . 7316 Electromagnetic 1493 | . . . 27 . . . . 1022 . . . . . . . . . . 444 Impact . | . . . . . . . . . . . . . . . . . . . . Slashing . | . . . . . . . . . . . . . . . . . . . . Piercing . | . . . . . . . . . . . . . . . . . . . . Phasic 66 | . . . . . . . . 66 . . . . . . . . . . . Highest Corruption 24 | . . . 2 3 3 3 3 3 4 1 . . . . 5 5 15 15 24 Average Corruption 4 | . . . 2 2 3 3 3 3 3 1 . . . . 3 5 11 15 16 Corruption Purged 1 | . . . . . . . . . . 1 . . . . . . . . . Corruption Blocked . | . . . . . . . . . . . . . . . . . . . . Effects 313 | . . . 36 36 21 19 3 21 19 5 . . . . 46 41 20 3 43 Message Errors 88 | . . . 6 6 7 7 2 7 6 . . . . . 18 14 6 . 9 Matter Fused 71 | . . . 10 11 2 3 . 4 5 2 . . . . 7 6 8 1 12 Heat Flow Errors 29 | . . . 7 . 2 4 . 2 3 . . . . . 5 2 . 1 3 Energy Discharges 45 | . . . 3 8 3 1 1 3 3 2 . . . . 6 6 3 . 6 Parts Rejected 6 | . . . . 1 . . . . . . . . . . 1 1 . . 3 Parts Fused 1 | . . . . . 1 . . . . . . . . . . . . . . Data Loss (minor) 33 | . . . 3 6 2 2 . 3 1 1 . . . . 3 7 1 1 3 Data Loss (major) 7 | . . . 1 1 . . . . . . . . . . 2 3 . . . Misfires 17 | . . . 3 2 2 1 . 2 . . . . . . 1 1 1 . 4 Alerts 6 | . . . 1 . 1 1 . . . . . . . . . 1 . . 2 Weapon Failures 10 | . . . 2 1 1 . . . 1 . . . . . 3 . 1 . 1 Overload Shots 1 | . . . . . . . . . . . . . . . . . 1 . . Overflow Damage 1676 | . . . 65 106 12 8 . 31 69 272 202 262 . 134 197 175 48 5 90 Projectiles 1504 | . . . 65 106 12 . . . 69 260 202 262 . 134 167 135 48 5 39 Explosions 90 | . . . . . . . . 31 . . . . . . 8 . . . 51 Melee 82 | . . . . . . 8 . . . 12 . . . . 22 40 . . . Knockbacks 3 | . . . . 1 . . . . . 1 . . . . 1 . . . . Impact 3 | . . . . 1 . . . . . 1 . . . . 1 . . . . Kinetic . | . . . . . . . . . . . . . . . . . . . . Secondary . | . . . . . . . . . . . . . . . . . . . . Self-Inflicted Damage 810 | . . . . . . . . 67 . . . . . . . 15 . . 728 Shots 30 | . . . . . . . . 3 . . . . . . . 1 . . 26 Rammed 18 | . . . . 16 . 1 . . . . . . . . . . . . 1 Targets Rammed 34 | . . . 2 16 . 1 . . . 8 . 1 . . 3 2 . . 1 Kicked 15 | . . . 1 . . . . . . 8 . 1 . . 3 2 . . . Crushed 1 | . . . 1 . . . . . . . . . . . . . . . . Highest Temperature 456 | 54 40 60 297 96 225 217 . 456 211 28 45 . . 10 284 216 180 247 190 Average Temperature 64 | 19 17 11 67 19 110 95 . 113 80 7 10 . . 5 95 106 102 135 48 Received Heat Transfer 5465 | . . 126 1278 342 276 . . 387 39 384 339 87 . 141 679 166 8 . 1213 Effects 2 | . . . . . . . . 2 . . . . . . . . . . . Shutdowns 1 | . . . . . . . . 1 . . . . . . . . . . . Matter Decay 1 | . . . . . . . . 1 . . . . . . . . . . . Siege Activations 8 | . . . . . . . . . . . . . . . . . . . 8 Total Turns 132 | . . . . . . . . . . . . . . . . . . . 132 Longest Duration 45 | . . . . . . . . . . . . . . . . . . . 45 Robots Corrupted 14 | . . . . . . 1 . 8 . 1 . 1 . . 1 1 . . 1 Combat Hostiles 8 | . . . . . . . . 8 . . . . . . . . . . . Parts Fried 13 | . . . . . . 3 . . . 2 . 2 . . 3 3 . . . Impact Corruptions 7 | . . . . . . 2 . . . 1 . 1 . . 1 2 . . . Robots Melted 7 | . . . 3 3 1 . . . . . . . . . . . . . . Combat Hostiles 6 | . . . 2 3 1 . . . . . . . . . . . . . . Parts Melted 73 | . . 2 28 18 2 . . . . 8 1 3 . 1 6 2 . . 2 Heat Transferred 31411 | 407 . 1204 8717 4846 777 37 . 1007 525 2150 1225 1325 . 1450 3825 1732 683 100 1401 Parts Sabotaged 1 | . . . . . . . . . . . . . . . . . . . 1 Parts Stolen . | . . . . . . . . . . . . . . . . . . . . Parts Stripped . | . . . . . . . . . . . . . . . . . . . . Power Chain Reactions 2 | . . . 1 . . . . . . . . . . . . . . . 1 Alert | -11 -10 -10 -8 -7 -7 -7 -7 -7 -6 -6 -6 -6 -6 -5 -5 -5 -5 -5 -5 ------- Run | Yrd Mat Sub Mat Fac Low Low Zio Dee Pro Fac Low Low Dat Pro Fac Ext Cet Arc Hub Peak Influence 3009 | 15 9 . 1019 1108 . . . . . 280 . . . . 960 1625 1214 591 3009 Initial 929 | . 9 . . 447 . . . . . . . . . . . 464 929 406 206 Average 564 | 5 9 . 409 879 . . . . . 77 . . . . 380 733 1037 451 1426 Maximum Alert Level 5 | . . . 3 4 . . . . . 1 . . . . 3 5 4 2 5 Low Security (%) 32 | 100 100 . 41 . . . . . . 84 . . . . 47 . . . . Level 1 9 | . . . 19 . . . . . . 15 . . . . 8 . . . 29 Level 2 18 | . . . 10 20 . . . . . . . . . . 23 54 . 100 1 Level 3 33 | . . . 28 74 . . . . . . . . . . 20 36 89 . 15 Level 4 2 | . . . . 4 . . . . . . . . . . . 8 10 . 1 Level 5 1 | . . . . . . . . . . . . . . . . . . . 18 High Security 2 | . . . . . . . . . . . . . . . . . . . 33 Max Security . | . . . . . . . . . . . . . . . . . . . . Sterilizations 1 | . . . 1 . . . . . . . . . . . . . . . . Squads Dispatched 77 | . . . 9 16 . . . . . 6 . 1 . . 18 7 . . 20 Investigation 9 | . . . . 5 . . . . . . . . . . 4 . . . . Extermination 16 | . . . . 6 . . . . . 3 . . . . 6 . . . 1 Reinforcement 25 | . . . 7 3 . . . . . 3 . . . . 3 3 . . 6 Assault 22 | . . . 1 2 . . . . . . . 1 . . 2 4 . . 12 Garrison 5 | . . . 1 . . . . . . . . . . . 3 . . . 1 Intercept . | . . . . . . . . . . . . . . . . . . . . Searches Triggered . | . . . . . . . . . . . . . . . . . . . . Data Miner Redirects 1 | . . . . . . . . . . . . . . . . . . . 1 Construction Impeded 6 | . . . . 1 . . . . . 1 . . . . 1 2 . . 1 Haulers Reinforced 2 | . . . . . . . . . . 2 . . . . . . . . . Active Scanning Responses . | . . . . . . . . . . . . . . . . . . . . Cargo Convoy Interrupts . | . . . . . . . . . . . . . . . . . . . . Stealth | -11 -10 -10 -8 -7 -7 -7 -7 -7 -6 -6 -6 -6 -6 -5 -5 -5 -5 -5 -5 --------- Run | Yrd Mat Sub Mat Fac Low Low Zio Dee Pro Fac Low Low Dat Pro Fac Ext Cet Arc Hub Distress Signals 14 | . . . 4 4 . . . . . 1 . . . . . 1 1 . 3 Communications Jammed . | . . . . . . . . . . . . . . . . . . . . Distress Signals . | . . . . . . . . . . . . . . . . . . . . Times Spotted 535 | . . 14 76 57 4 2 . 61 8 24 18 17 . 15 54 76 9 . 100 Peak Tracking Total 37 | . . 3 5 5 3 1 . 37 3 3 5 8 . 5 7 11 5 . 16 Tactical Retreats 24 | . . . 3 4 . . . . 2 1 2 2 . 2 1 6 . . 1 Traps | -11 -10 -10 -8 -7 -7 -7 -7 -7 -6 -6 -6 -6 -6 -5 -5 -5 -5 -5 -5 ------- Run | Yrd Mat Sub Mat Fac Low Low Zio Dee Pro Fac Low Low Dat Pro Fac Ext Cet Arc Hub Traps Triggered 8 | . . 3 1 1 . . . . . 1 . . . . 2 . . . . Indirectly . | . . . . . . . . . . . . . . . . . . . . Trap Hack Attempts . | . . . . . . . . . . . . . . . . . . . . Triggered . | . . . . . . . . . . . . . . . . . . . . Disarmed . | . . . . . . . . . . . . . . . . . . . . Reprogrammed . | . . . . . . . . . . . . . . . . . . . . Reused . | . . . . . . . . . . . . . . . . . . . . Traps Extracted . | . . . . . . . . . . . . . . . . . . . . Installed . | . . . . . . . . . . . . . . . . . . . . Triggered 3 | . . . . . . 2 . . 1 . . . . . . . . . . Machines | -11 -10 -10 -8 -7 -7 -7 -7 -7 -6 -6 -6 -6 -6 -5 -5 -5 -5 -5 -5 ---------- Run | Yrd Mat Sub Mat Fac Low Low Zio Dee Pro Fac Low Low Dat Pro Fac Ext Cet Arc Hub Machines Disabled 45 | . . 1 4 1 1 . . 1 . 1 . . . . 5 8 1 1 21 Max in Single Turn 15 | . . 1 2 1 1 . . 1 . 1 . . . . 1 1 1 . 15 Garrison Access 3 | . . . . 1 . . . . . . . . . . . . . . 2 Network Hub 2 | . . . . . . . . . . . . . . . . . . . 2 Energy Cycler 3 | . . . . . . . . . . . . . . . . 3 . . . Machines Repaired 1 | . . . . 1 . . . . . . . . . . . . . . . Machines Dismantled . | . . . . . . . . . . . . . . . . . . . . Machines Sabotaged . | . . . . . . . . . . . . . . . . . . . . Overloaded Fab Kills . | . . . . . . . . . . . . . . . . . . . . Hacking | -11 -10 -10 -8 -7 -7 -7 -7 -7 -6 -6 -6 -6 -6 -5 -5 -5 -5 -5 -5 --------- Run | Yrd Mat Sub Mat Fac Low Low Zio Dee Pro Fac Low Low Dat Pro Fac Ext Cet Arc Hub Machines Accessed 48 | . . 1 9 12 2 2 1 . . 6 . . 4 . 9 . . . 2 Terminals 17 | . . . 6 6 . . . . . 2 . . . . 2 . . . 1 Fabricators 6 | . . . . 2 . . . . . 1 . . . . 3 . . . . Repair Stations 7 | . . . 1 2 . . . . . 2 . . . . 2 . . . . Recycling Units 2 | . . . . 1 . . . . . . . . . . 1 . . . . Scanalyzers 4 | . . . 2 . . . . . . 1 . . . . 1 . . . . Garrison Access 2 | . . . . 1 . . . . . . . . . . . . . . 1 Total Hacks 149 | . . 1 32 31 5 2 4 . . 16 . . 27 . 29 . . . 2 Successful 103 | . . 1 21 16 5 2 4 . . 10 . . 27 . 16 . . . 1 Failed 46 | . . . 11 15 . . . . . 6 . . . . 13 . . . 1 Catastrophic 5 | . . . . 2 . . . . . 1 . . . . 1 . . . 1 Database Lockouts . | . . . . . . . . . . . . . . . . . . . . Manual 54 | . . . 17 16 1 . . . . 3 . . . . 15 . 1 . 1 Terminals 54 | . . . 23 19 . . . . . 4 . . . . 7 . . . 1 Fabricators 18 | . . . . 6 . . . . . 1 . . . . 11 . . . . Repair Stations 18 | . . . 2 3 . . . . . 5 . . . . 8 . . . . Recycling Units 4 | . . . . 2 . . . . . . . . . . 2 . . . . Scanalyzers 14 | . . . 7 . . . . . . 6 . . . . 1 . . . . Garrison Access 2 | . . . . 1 . . . . . . . . . . . . . . 1 Terminal Hacks 54 | . . 1 7 5 5 2 4 . . 1 . . 27 . 2 . . . . Record 15 | . . . . . 4 . . . . . . . 11 . . . . . . Part Schematic 15 | . . . 2 . . . 4 . . . . . 9 . . . . . . Robot Schematic 4 | . . . . . . . . . . . . . 4 . . . . . . Robot Analysis 1 | . . . 1 . . . . . . . . . . . . . . . . Prototype ID Bank 6 | . . . 2 1 . . . . . . . . 3 . . . . . . Open Door 3 | . . . . . 1 2 . . . . . . . . . . . . . Branch Access Points 1 | . . . . 1 . . . . . . . . . . . . . . . Terminal Index 2 | . . . 1 1 . . . . . . . . . . . . . . . Fabricator Index 1 | . . . . . . . . . . . . . . . 1 . . . . Repair Station Index 1 | . . . . . . . . . . . . . . . 1 . . . . Unreport Threat 1 | . . . 1 . . . . . . . . . . . . . . . . Patrol Status 1 | . . . . 1 . . . . . . . . . . . . . . . Hauler Manifests 2 | . . . . 1 . . . . . 1 . . . . . . . . . Derelict Proto ID Bank 1 | . . 1 . . . . . . . . . . . . . . . . . Fabricator Hacks 10 | . . . . 3 . . . . . 1 . . . . 6 . . . . Network Status 2 | . . . . 1 . . . . . 1 . . . . . . . . . Load Schematic 5 | . . . . 1 . . . . . . . . . . 4 . . . . Build 3 | . . . . 1 . . . . . . . . . . 2 . . . . Repair Station Hacks 8 | . . . 2 1 . . . . . 2 . . . . 3 . . . . Scan Component 5 | . . . 1 1 . . . . . 1 . . . . 2 . . . . Repair 3 | . . . 1 . . . . . . 1 . . . . 1 . . . . Recycling Unit Hacks . | . . . . . . . . . . . . . . . . . . . . Scanalyzer 10 | . . . 5 . . . . . . 5 . . . . . . . . . Insert Component 5 | . . . 2 . . . . . . 3 . . . . . . . . . Analyze 5 | . . . 3 . . . . . . 2 . . . . . . . . . Garrison Access Hacks 2 | . . . . 1 . . . . . . . . . . . . . . 1 Seal Access 2 | . . . . 1 . . . . . . . . . . . . . . 1 Unauthorized Hacks 19 | . . . 7 6 . . . . . 1 . . . . 5 . . . . Terminals 13 | . . . 7 5 . . . . . 1 . . . . . . . . . Botnet 4 | . . . 1 2 . . . . . 1 . . . . . . . . . Operators 1 | . . . 1 . . . . . . . . . . . . . . . . Skim 8 | . . . 5 3 . . . . . . . . . . . . . . . Fabricators 3 | . . . . 1 . . . . . . . . . . 2 . . . . Prioritize 2 | . . . . 1 . . . . . . . . . . 1 . . . . Recompile 1 | . . . . . . . . . . . . . . . 1 . . . . Repair Stations 1 | . . . . . . . . . . . . . . . 1 . . . . Patch 1 | . . . . . . . . . . . . . . . 1 . . . . Recycling Units 2 | . . . . . . . . . . . . . . . 2 . . . . Reject 1 | . . . . . . . . . . . . . . . 1 . . . . Mask 1 | . . . . . . . . . . . . . . . 1 . . . . Scanalyzers . | . . . . . . . . . . . . . . . . . . . . Garrison Access . | . . . . . . . . . . . . . . . . . . . . Data Cores Recovered 1 | . . . 1 . . . . . . . . . . . . . . . . Used . | . . . . . . . . . . . . . . . . . . . . Hacking Detections 34 | . . . 8 11 . . . . . 5 . . . . 9 . . . 1 Full Trace Events 7 | . . . 1 4 . . . . . . . . . . 2 . . . . Feedback Events 1 | . . . . 1 . . . . . . . . . . . . . . . Corruption 1 | . . . . 1 . . . . . . . . . . . . . . . Feedback Blocked . | . . . . . . . . . . . . . . . . . . . . Robot Schematics Acquired 8 | . . . . . . . 4 . . . . . 4 . . . . . . Robots Built . | . . . . . . . . . . . . . . . . . . . . Authchips . | . . . . . . . . . . . . . . . . . . . . Time . | . . . . . . . . . . . . . . . . . . . . Total Robot Build Rating . | . . . . . . . . . . . . . . . . . . . . Part Schematics Acquired 33 | . . . 4 . . . 19 . . 1 . . 9 . . . . . . Parts Built 3 | . . . . 1 . . . . . . . . . . 2 . . . . Authchips 2 | . . . . . . . . . . . . . . . 2 . . . . Time 106 | . . . . 25 . . . . . . . . . . 81 . . . . Total Part Build Rating 13 | . . . . 1 . . . . . . . . . . 12 . . . . Parts Repaired 3 | . . . 1 . . . . . . 1 . . . . 1 . . . . Time 176 | . . . 44 . . . . . . 37 . . . . 95 . . . . Parts Recycled . | . . . . . . . . . . . . . . . . . . . . Recycled Matter . | . . . . . . . . . . . . . . . . . . . . Retrieved Matter . | . . . . . . . . . . . . . . . . . . . . Retrieved Components . | . . . . . . . . . . . . . . . . . . . . Parts Scanalyzed 4 | . . . 2 . . . . . . 2 . . . . . . . . . Part Schematics Acquired 3 | . . . 2 . . . . . . 1 . . . . . . . . . Parts Damaged 1 | . . . . . . . . . . 1 . . . . . . . . . Bothacking | -11 -10 -10 -8 -7 -7 -7 -7 -7 -6 -6 -6 -6 -6 -5 -5 -5 -5 -5 -5 ------------ Run | Yrd Mat Sub Mat Fac Low Low Zio Dee Pro Fac Low Low Dat Pro Fac Ext Cet Arc Hub Used RIF Installer . | . . . . . . . . . . . . . . . . . . . . Robots Hacked 2 | . . . . . . . 1 . . . . . . . . . . . 1 Non-combat . | . . . . . . . . . . . . . . . . . . . . Combat 1 | . . . . . . . 1 . . . . . . . . . . . . Robot Hacks Applied 1 | . . . . . . . 1 . . . . . . . . . . . . parse_system 1 | . . . . . . . 1 . . . . . . . . . . . . Manual 1 | . . . . . . . . . . . . . . . . . . . 1 Relay Couplers Released 3 | . . . . . . . . . . . . . . . . . . . 3 Machine Destruction 3 | . . . . . . . . . . . . . . . . . . . 3 Fabnet Peak Effective % . | . . . . . . . . . . . . . . . . . . . . Robots Rewired 5 | . . . . . . . . . . . . 1 . . . 4 . . . Allies Hacked . | . . . . . . . . . . . . . . . . . . . . Hacks Repelled . | . . . . . . . . . . . . . . . . . . . . Allies | -11 -10 -10 -8 -7 -7 -7 -7 -7 -6 -6 -6 -6 -6 -5 -5 -5 -5 -5 -5 -------- Run | Yrd Mat Sub Mat Fac Low Low Zio Dee Pro Fac Low Low Dat Pro Fac Ext Cet Arc Hub Total Allies 19 | . . . . . . . 1 . . . . 1 . . . 11 5 . 1 Largest Group 7 | . . . . . . . 1 1 . . . 1 1 1 . 7 6 4 4 Highest-Rated Group 623 | . . . . . . . 99 99 . . . 32 32 32 . 341 623 370 373 Highest-Rated Ally 159 | . . . . . . . 99 99 . . . 32 32 32 . 159 149 96 96 Total Orders 29 | . . . . . . . . . . . . . 4 . . 15 5 2 3 STAY 2 | . . . . . . . . . . . . . 2 . . . . . . FOLLOW 3 | . . . . . . . . . . . . . 2 . . . . 1 . GUARD 1 | . . . . . . . . . . . . . . . . . . 1 . RETURN 23 | . . . . . . . . . . . . . . . . 15 5 . 3 Ally Attacks 414 | . . . . . . . . 35 . . . 4 . 5 . 240 57 10 63 Total Damage 12855 | . . . . . . . . 1492 . . . 256 . 72 . 6667 1912 325 2131 Kills 76 | . . . . . . . . 15 . . . . . . . 37 8 4 12 Allies Corrupted . | . . . . . . . . . . . . . . . . . . . . Allies Melted . | . . . . . . . . . . . . . . . . . . . . Intel | -11 -10 -10 -8 -7 -7 -7 -7 -7 -6 -6 -6 -6 -6 -5 -5 -5 -5 -5 -5 ------- Run | Yrd Mat Sub Mat Fac Low Low Zio Dee Pro Fac Low Low Dat Pro Fac Ext Cet Arc Hub Robot Analysis Total 1 | . . . 1 . . . . . . . . . . . . . . . . Derelict Logs Recovered 9 | . . 1 . . . 1 1 . 1 . 1 3 . 1 . . . . . Drone Launches 31 | . . . . . . . . . . . . . . . . 22 5 . 4 Drone Recoveries 29 | . . . . . . . . . . . . . . . . 22 4 . 3 Exploration | -11 -10 -10 -8 -7 -7 -7 -7 -7 -6 -6 -6 -6 -6 -5 -5 -5 -5 -5 -5 ------------- Run | Yrd Mat Sub Mat Fac Low Low Zio Dee Pro Fac Low Low Dat Pro Fac Ext Cet Arc Hub Turns Passed 39488 | 144 49 2441 2810 3012 1057 1198 4165 3741 1342 2556 3562 2705 637 3952 2754 1797 519 100 947 Spaces Moved 14948 | 55 23 1193 1114 1147 414 478 1534 1424 506 1019 1440 1194 111 1316 879 617 178 40 266 Core 25 | 6 . . . . . . . . . . . . 17 2 . . . . . Treads 6495 | 49 23 999 889 1147 414 478 1534 932 . . . . . 14 . . . . 16 Legs 8077 | . . . 68 . . . . 492 506 1019 1440 1194 94 1300 879 617 178 40 250 Wheels 351 | . . 194 157 . . . . . . . . . . . . . . . . Hover . | . . . . . . . . . . . . . . . . . . . . Flight . | . . . . . . . . . . . . . . . . . . . . Fastest Speed 50 | 50 160 110 100 160 242 242 240 189 183 210 210 210 210 210 180 210 210 240 160 Average Speed 218 | 156 160 180 170 218 242 242 241 231 203 215 214 210 570 215 229 231 228 240 235 Slowest Speed 3000 | 160 160 240 240 242 242 242 242 340 285 226 300 210 3000 2350 300 240 300 240 240 Overloaded Moves . | . . . . . . . . . . . . . . . . . . . . Propulsion Burnouts . | . . . . . . . . . . . . . . . . . . . . Robots Hopped . | . . . . . . . . . . . . . . . . . . . . Cave-ins Triggered . | . . . . . . . . . . . . . . . . . . . . Exploration Rate (%) 59 | 6 5 60 77 32 61 55 87 82 63 36 85 98 75 98 18 82 70 60 40 Regions Visited 19 Branch Regions 14 Pre-discovered Areas 5 | . . 1 . . . . 2 . . . . 1 1 . . . . . . Known Exits Taken 4 | . . . 1 1 . . . . . 1 . . . . 1 . . . . Unknown Exits Taken 15 | 1 1 1 . . 1 1 1 1 1 . 1 1 1 1 . 1 1 1 . Scrap Searched 26 | . . 1 . . 3 4 4 . 4 . 2 5 . 3 . . . . . Spaces Dug 131 | . . 2 2 . . . . 3 14 16 18 20 . 28 22 3 . . 3 Terrain Destroyed 1207 | . . 2 98 42 8 14 . 10 52 45 58 53 . 57 107 53 3 . 605 Melee . | . . . . . . . . . . . . . . . . . . . . Projectile 481 | . . 2 67 19 8 . . 10 52 45 58 53 . 57 61 30 3 . 16 AOE 726 | . . . 31 23 . 14 . . . . . . . . 46 23 . . 589 Terrain Rammed . | . . . . . . . . . . . . . . . . . . . . Walls Destroyed . | . . . . . . . . . . . . . . . . . . . . Machines Disabled . | . . . . . . . . . . . . . . . . . . . . Actions | -11 -10 -10 -8 -7 -7 -7 -7 -7 -6 -6 -6 -6 -6 -5 -5 -5 -5 -5 -5 --------- Run | Yrd Mat Sub Mat Fac Low Low Zio Dee Pro Fac Low Low Dat Pro Fac Ext Cet Arc Hub Total 19874 | 80 26 1383 1676 1452 439 516 1990 1739 751 1237 1812 1288 117 2333 1392 878 266 41 458 Wait 2883 | . . 78 222 127 7 4 387 115 177 86 277 28 3 909 256 118 21 . 68 Move 14929 | 54 22 1192 1113 1146 413 477 1533 1423 505 1018 1439 1193 110 1315 878 616 177 39 266 Hop . | . . . . . . . . . . . . . . . . . . . . Pick Up 185 | 4 . 15 37 12 1 . 12 23 6 11 4 4 . 9 29 6 9 . 3 Fast Attach 160 | 7 . 5 30 10 . 9 15 26 5 8 6 1 . 6 17 4 7 . 4 Attach 59 | . . 4 3 1 2 2 8 11 1 3 2 . . 3 2 2 1 . 14 Detach 34 | . . . . 2 . 3 4 7 . . 1 . . 1 2 2 3 . 9 Swap 106 | . 1 8 25 20 . 5 3 8 2 3 1 . . 2 11 5 2 . 10 Drop 402 | . . 15 62 21 . 12 22 55 18 25 28 7 4 30 63 9 25 . 6 Fire 1011 | 15 3 60 182 96 16 2 4 71 37 75 54 53 . 58 131 55 21 2 76 Melee 2 | . . . . . . . 2 . . . . . . . . . . . . Ram . | . . . . . . . . . . . . . . . . . . . . Kick 15 | . . . 1 . . . . . . 8 . 1 . . 3 2 . . . Crush 19 | . . . 1 16 . 1 . . . . . . . . . . . . 1 Escape Stasis 1 | . . . . . . . . . . . . . . . . . . . 1 Rewire 61 | . . . . . . 1 . . . . . 1 . . . 59 . . . Trap . | . . . . . . . . . . . . . . . . . . . . Miscellaneous 7 | . . 6 . 1 . . . . . . . . . . . . . . . Route ------- -11/Scrapyard -10/Materials -10/Subcaves (discovered 2 exits: *Mat x2) -8/Materials (discovered 4 exits: *Fac x2 / [*Sto x2]) -7/Factory (discovered 4 exits: *Fac x2 / *Low x2) -7/Lower Caves -7/Lower Caves (discovered 2 exits: *Fac / *Zio) -7/Zion (discovered 2 exits: [*Dee] / [*Pro]) -7/Deep Caves -6/Proximity Caves -6/Factory (discovered 2 exits: *Fac / *Low) -6/Lower Caves -6/Lower Caves (discovered 2 exits: *Fac / *Dat) -6/Data Miner -5/Proximity Caves -5/Factory (discovered 3 exits: Upp x2 / *Ext) -5/Extension (discovered 2 exits: [*Fac] / *Cet) -5/Cetus (discovered 2 exits: [*Fac] / [*Arc]) -5/Archives -5/Hub_04(d) (discovered 1 exit: [*Fac]) History --------- Turn | Location | Event 15 | -11/Scrapyard | Discovered new exit (range 15) 145 | -11/Scrapyard | Entered Materials 189 | -10/Materials | Discovered new exit (range 3) 194 | -10/Materials | Entered Subcaves 209 | -10/Subcaves | Learned location of Zion (-7) 209 | -10/Subcaves | Met a Zionite searching for "candidates" 301 | -10/Subcaves | Build established: Mutant 314 | -10/Subcaves | A Subdweller sparked back to life 331 | -10/Subcaves | Found Prototype Processor 372 | -10/Subcaves | Learned location of 1 exit from Materials 1131 | -10/Subcaves | Ambushed by angry Subdweller bent on revenge 1188 | -10/Subcaves | Discovered new exit (range 8) 1289 | -10/Subcaves | Discovered new exit (range 7) 1356 | -10/Subcaves | Shifting Twisted Machinery released Slug Cannon 1361 | -10/Subcaves | Shifting Twisted Machinery released Sub. Beam Cannon 1541 | -10/Subcaves | Build established: Subdweller-Mutant 2285 | -10/Subcaves | Visited 4L-MR0's lab 2298 | -10/Subcaves | Identified Rainbow Chip 2308 | -10/Subcaves | Found Gun Armor 2635 | -10/Subcaves | Entered Materials 2635 | -8/Materials | Evolved 4 slots: Propulsion x2, Utility x2 2636 | -8/Materials | Identified exit to Factory 2658 | -8/Materials | Discovered new exit (range 11) 3066 | -8/Materials | Build established: Scavenger-Mutant 3886 | -8/Materials | Discovered new exit (range 13) 3921 | -8/Materials | Garrison activated, responded to threat 3967 | -8/Materials | Destroyed 7 combat bots 4123 | -8/Materials | Build established: Mutant 4320 | -8/Materials | Discovered exit to Factory (range 8) 4395 | -8/Materials | Destroyed 8 combat bots 4635 | -8/Materials | First assault squad dispatched 4672 | -8/Materials | Core integrity fell below 50% 4768 | -8/Materials | Repaired Imp. Cooling System 4922 | -8/Materials | Build established: Scavenger-Mutant 5158 | -8/Materials | Sterilization system engaged 5158 | -8/Materials | Non-combat units ordered to evacuate 5258 | -8/Materials | Combat units ordered to evacuate 5445 | -8/Materials | Entered Factory 5445 | -7/Factory | Evolved 2 slots: Power x1, Utility x1 5945 | -7/Factory | Found Prototype Launcher 5945 | -7/Factory | Identified Rocket Array 6192 | -7/Factory | Identified exit to Lower Caves 6834 | -7/Factory | Fabricated Huge Storage Unit (x1) 6921 | -7/Factory | Discovered new exit (range 15) 7045 | -7/Factory | First assault squad dispatched 7353 | -7/Factory | Discovered new exit (range 9) 8457 | -7/Factory | Entered Lower Caves 8458 | -7/Lower Caves | Encountered a Warlord checkpoint 8980 | -7/Lower Caves | Learned Armory emergency access door positions 8980 | -7/Lower Caves | Learned Factory garrison access intel 9437 | -7/Lower Caves | Acquired the password to a Derelict Tinkerer's latest research 9452 | -7/Lower Caves | Found Prototype Special Weapon 9497 | -7/Lower Caves | Discovered new exit (range 7) 9514 | -7/Lower Caves | Entered another Lower Caves area 9517 | -7/Lower Caves | Discovered new exit (range 12) 9605 | -7/Lower Caves | Identified Molecular Deconstructor 10036 | -7/Lower Caves | Discovered new exit (range 10) 10197 | -7/Lower Caves | Found Prototype Device 10197 | -7/Lower Caves | Identified Heart of Steel 10498 | -7/Lower Caves | Build established: Mutant 10712 | -7/Lower Caves | Entered Zion 10819 | -7/Zion | System corruption cleaned by Quarantine Array 11027 | -7/Zion | Discovered new exit (range 11) 11226 | -7/Zion | Found Prototype Processor 11226 | -7/Zion | Identified Exp. Melee Analysis Suite 11231 | -7/Zion | Found Prototype Processor 11231 | -7/Zion | Identified Exp. Targeting Computer 11235 | -7/Zion | Found Prototype Processor 11235 | -7/Zion | Identified Exp. Target Analyzer 11666 | -7/Zion | Found Prototype Device 11666 | -7/Zion | Identified Mobile Refinery Mk. CCLXVII 12094 | -7/Zion | Heart of Steel transformed into Warbot 12412 | -7/Zion | Learned location of Extension (-5) 12596 | -7/Zion | Learned location of Armory (-4) 13039 | -7/Zion | Met Imprinter 13380 | -7/Zion | Discovered new exit (range 5) 13382 | -7/Zion | Saw the warning signs outside the Deep Caves entrance 14877 | -7/Zion | Entered Deep Caves 14877 | -7/Deep Caves | Accompanied by 1 ally (Warbot) 15007 | -7/Deep Caves | Attacked by Z-Imprinter 15021 | -7/Deep Caves | Destroyed Z-Imprinter 15139 | -7/Deep Caves | Attached Gun Armor, gained temporary slots: Weapon x2 15284 | -7/Deep Caves | Z-Facility disabled 15356 | -7/Deep Caves | Found Prototype Protection 15356 | -7/Deep Caves | Identified Zio. Weapon Casing 15396 | -7/Deep Caves | Found Prototype Protection 15396 | -7/Deep Caves | Identified Zio. Heavy Carapace 15478 | -7/Deep Caves | Found Zio. Weapon Casing 15533 | -7/Deep Caves | Found Zio. Heavy Carapace 15549 | -7/Deep Caves | Found Zio. Heavy Carapace 15564 | -7/Deep Caves | Found Zio. Heavy Carapace 15740 | -7/Deep Caves | Build established: Tank 16605 | -7/Deep Caves | Discovered new exit (range 6) 16730 | -7/Deep Caves | Murdered Warbot 16811 | -7/Deep Caves | Spotted AG-41021 16846 | -7/Deep Caves | Destroyed AG-41021 16987 | -7/Deep Caves | Spotted AG-79839 17003 | -7/Deep Caves | Destroyed AG-79839 17233 | -7/Deep Caves | Triggered Deep Caves wall 17233 | -7/Deep Caves | Spotted AS-74177 17233 | -7/Deep Caves | Spotted AS-10259 17234 | -7/Deep Caves | Destroyed AS-10259 17261 | -7/Deep Caves | Destroyed AS-74177 17279 | -7/Deep Caves | Destroyed 37 combat bots 17314 | -7/Deep Caves | Exposed GOLEM chamber 17318 | -7/Deep Caves | Found Unknown Device 17318 | -7/Deep Caves | Identified GOLEM Unit 17450 | -7/Deep Caves | Found Prototype Processor 17519 | -7/Deep Caves | Found GOLEM Unit 17525 | -7/Deep Caves | Found GOLEM Unit 17535 | -7/Deep Caves | Found GOLEM Unit 17653 | -7/Deep Caves | Build established: Golem 17943 | -7/Deep Caves | Found Zio. Weapon Casing 17950 | -7/Deep Caves | Found Zio. Weapon Casing 18618 | -7/Deep Caves | Entered Proximity Caves 18637 | -6/Proximity Caves | Learned Factory emergency access door positions 19020 | -6/Proximity Caves | Ambushed by research squad 19281 | -6/Proximity Caves | Core integrity fell below 50% 19282 | -6/Proximity Caves | Attracted the attention of an 0b10 checkpoint 19374 | -6/Proximity Caves | Discovered new exit (range 6) 19960 | -6/Proximity Caves | Entered Factory 19960 | -6/Factory | Evolved 2 slots: Utility x2 19962 | -6/Factory | Loaded intel: 4 garrison access locations 20739 | -6/Factory | Repaired Adv. Phase Shifter 20889 | -6/Factory | Identified Modified TNC 21150 | -6/Factory | Discovered new exit (range 11) 21228 | -6/Factory | Identified exit to Lower Caves 21620 | -6/Factory | Discovered new exit (range 6) 22516 | -6/Factory | Entered Lower Caves 23553 | -6/Lower Caves | Found Imp. Powered Armor 25542 | -6/Lower Caves | Learned Factory stockpile data 25662 | -6/Lower Caves | Discovered new exit (range 8) 26078 | -6/Lower Caves | Entered another Lower Caves area 26085 | -6/Lower Caves | Learned location of 2 exits from Factory 26089 | -6/Lower Caves | Discovered new exit (range 15) 27052 | -6/Lower Caves | Learned Factory terminal intel 28322 | -6/Lower Caves | Attracted the attention of an 0b10 outpost 28514 | -6/Lower Caves | Discovered new exit (range 14) 28783 | -6/Lower Caves | Entered Data Miner 28783 | -6/Data Miner | Accompanied by 1 ally 28783 | -6/Data Miner | Discovered new exit (range 6) 28967 | -6/Data Miner | Met Data Miner 29266 | -6/Data Miner | Learned location of Section 7 (-2) 29266 | -6/Data Miner | Acquired the access code to Warlord's prototype stash 29308 | -6/Data Miner | Received God Mode back door access code from Data Miner 29420 | -6/Data Miner | Entered Proximity Caves 29420 | -5/Proximity Caves | Accompanied by 1 ally 29448 | -5/Proximity Caves | Learned Factory emergency access door positions 29460 | -5/Proximity Caves | Found DCF Scrap (12 items) 30333 | -5/Proximity Caves | Attracted the attention of an 0b10 checkpoint 30521 | -5/Proximity Caves | Discovered new exit (range 15) 32989 | -5/Proximity Caves | Received a Behemoth hack from an annoying Tinkerer 33372 | -5/Proximity Caves | Entered Factory 33372 | -5/Factory | Evolved 2 slots: Utility x2 33373 | -5/Factory | Identified exit to Upper Caves 33374 | -5/Factory | Identified exit to Extension 33377 | -5/Factory | Loaded intel: 28 terminal locations 34525 | -5/Factory | Fabricated Adv. Hacking Suite (x1) 34841 | -5/Factory | Destroyed 7 combat bots 34929 | -5/Factory | Repaired Broken Adv. Force Field? 35047 | -5/Factory | Build established: Hacker-Golem 35235 | -5/Factory | Fabricated Combat Drone Bay? 35472 | -5/Factory | First assault squad dispatched 35540 | -5/Factory | Garrison activated, responded to threat 35822 | -5/Factory | Build established: Golem 36126 | -5/Factory | Entered Extension 36341 | -5/Extension | Rescued A7 36426 | -5/Extension | First assault squad dispatched 36607 | -5/Extension | Rescued a captive Derelict 36628 | -5/Extension | Rescued a captive Derelict 36629 | -5/Extension | Rescued a captive Derelict 36669 | -5/Extension | Rescued a captive Derelict 36841 | -5/Extension | Rescued a captive Derelict 37385 | -5/Extension | Build established: Commander-Golem 37423 | -5/Extension | Spotted B-75 Beast 37444 | -5/Extension | Destroyed B-75 Beast 37466 | -5/Extension | Lost 4 allies 37488 | -5/Extension | Spotted B-75 Beast 37508 | -5/Extension | Allies destroyed B-75 Beast 37728 | -5/Extension | Build established: Golem 37757 | -5/Extension | Discovered new exit (range 15) 37760 | -5/Extension | Discovered new exit (range 15) 37859 | -5/Extension | Energy Cycler disabled 37859 | -5/Extension | Rescued a captive Derelict 37859 | -5/Extension | Rescued a captive Derelict 37860 | -5/Extension | Rescued a captive Derelict 37860 | -5/Extension | Rescued a captive Derelict 37913 | -5/Extension | Disrupted transfer network 37923 | -5/Extension | Entered Cetus 37923 | -5/Cetus | Accompanied by 2 allies (A7) 37928 | -5/Cetus | Acquired a Cetus Manufacturing Module code from A7 37947 | -5/Cetus | Spotted Cetus Guard 37953 | -5/Cetus | Allies destroyed Cetus Guard 37953 | -5/Cetus | Spotted Cetus Guard 37961 | -5/Cetus | Allies destroyed Cetus Guard 37961 | -5/Cetus | Destroyed Cetus Guard 37970 | -5/Cetus | Allies destroyed Cetus Guard 37999 | -5/Cetus | System corruption reached 10% 38105 | -5/Cetus | Started Cetus Manufacturing Module 38118 | -5/Cetus | Discovered new exit (range 24) 38130 | -5/Cetus | Manufactured an Enhanced Grunt 38155 | -5/Cetus | Manufactured an Enhanced Grunt 38163 | -5/Cetus | Escorted A7 to Cetus Mainframe 38180 | -5/Cetus | Manufactured an Enhanced Grunt 38205 | -5/Cetus | Manufactured an Enhanced Grunt 38230 | -5/Cetus | Manufactured an Enhanced Grunt 38250 | -5/Cetus | Discovered new exit (range 23) 38252 | -5/Cetus | Spotted Cetus Guard 38254 | -5/Cetus | Spotted Cetus Guard 38255 | -5/Cetus | Spotted Cetus Guard 38256 | -5/Cetus | Allies destroyed Cetus Guard 38259 | -5/Cetus | Spotted Cetus Guard 38267 | -5/Cetus | Destroyed Cetus Guard 38267 | -5/Cetus | Allies destroyed Cetus Guard 38275 | -5/Cetus | Allies destroyed Cetus Guard 38290 | -5/Cetus | Met Revision 17 38342 | -5/Cetus | Found Prototype Device 38342 | -5/Cetus | Identified Exp. Thermal Shield 38409 | -5/Cetus | Murdered A7 38414 | -5/Cetus | Extracted ID and sensor layout for unrecognized location from A7's data core 38442 | -5/Cetus | Entered Archives 38442 | -5/Archives | Accompanied by 4 allies 38492 | -5/Archives | Met Zhirov 38498 | -5/Archives | Reinforcements dispatched to Archives 38499 | -5/Archives | Build established: Commander-Golem 38511 | -5/Archives | Discovered new exit (range 14) 38542 | -5/Archives | Entered Hub_04(d) 38542 | -5/Hub_04(d) | Accompanied by 3 allies 38750 | -5/Hub_04(d) | Spotted B-75 Beast 38754 | -5/Hub_04(d) | Befriended a Behemoth using the annoying Tinkerer's hack 38830 | -5/Hub_04(d) | Garrison activated, responded to threat 38842 | -5/Hub_04(d) | First assault squad dispatched 38877 | -5/Hub_04(d) | Destroyed 7 combat bots 38879 | -5/Hub_04(d) | Build established: Golem 38883 | -5/Hub_04(d) | Lost 3 allies 38999 | -5/Hub_04(d) | Network Hub disabled 38999 | -5/Hub_04(d) | Network Hub disabled 39160 | -5/Hub_04(d) | Incoming assault squad redirected 39168 | -5/Hub_04(d) | Spotted Lightning 39169 | -5/Hub_04(d) | Spotted Lightning 39170 | -5/Hub_04(d) | Spotted Lightning 39176 | -5/Hub_04(d) | High security lockdown imminent 39180 | -5/Hub_04(d) | Destroyed Lightning 39188 | -5/Hub_04(d) | Destroyed Lightning 39192 | -5/Hub_04(d) | Destroyed Lightning 39218 | -5/Hub_04(d) | Destroyed 11 combat bots 39256 | -5/Hub_04(d) | High security lockdown engaged 39353 | -5/Hub_04(d) | Destroyed 13 combat bots 39395 | -5/Hub_04(d) | Core integrity fell below 50% 39448 | -5/Hub_04(d) | Attached Rainbow Chip, gained temporary slots: Power, Propulsion, Utility, Weapon 39450 | -5/Hub_04(d) | Destroyed 18 combat bots 39463 | -5/Hub_04(d) | Core integrity fell below 20% 39469 | -5/Hub_04(d) | Discovered new exit (range 16) 39489 | -5/Hub_04(d) | Destroyed by H-66 Slayer with Gauss Rifle Last Messages --------------- 39475_ Penetrated by Slug. 39476_ System corrupted: Matter fused (-3). 39476_ The unstable cave ceiling collapses. 39476_ Penetrated by Slug. 39476_ Centrium Medium Armor Plating destroyed. 39477_ The unstable cave ceiling collapses. 39478_ Penetrated by Slug. 39480_ The unstable cave ceiling collapses. 39481_ Penetrated by Slug. 39482_ Slug penetrates Earth. 39482_ Penetrated by Slug. 39482_ Centrium Heavy Treads destroyed. 39483_ The unstable cave ceiling collapses. 39484_ Acquired 67 matter. 39484_ Penetrated by Slug. 39485_ The unstable cave ceiling collapses. 39485_ Penetrated by Slug. 39485_ Slug penetrates Earth. 39487_ The unstable cave ceiling collapses. 39488_ Penetrated by Slug. Map ----- +----------------------------------------------------+ | ?# #???????# # # #?????????????????????? | | ?# """"#????#### # ####??#???????????????? | | ?# """"#????# # ## ????????????????? | | ?# """"#????# " ?????????????????? | | ?# """"#?????# # #??????????????????? | | ?# ?????????? # #??????????????????? | | #############?????# #??????????????????? | | #??????# = #??????????????????? | | #???#### [ % ########???????????? | | " #??# ^ + % " ????????????? | | " #??# #### # ####????????????????? | | " ######### ######??????????????? | | " ""T"" ## #* """ "??????????????? | | """" ## #% ! """" ""?????????????? | | [% ## = """ """????????????? | | ####+##+###### ! % """ """" #?????????? | | ???# ## #????# ! # #?????????? | | ???# ## #????# #?????????? | | ???# ## #????# i h # =#?????????? | | ???# ## #????# gh ##"#######?????????? | | ???# ## #?#########h; # ## ######????????????? | | ???# ## #?? ?# ## #????????????? | | ???# #" #?? ??# g% ???????? | | ???? ## #??? ???#% # ???????? | | ???? ?# #??? ???#%# %l # # ???????? | | ???? ?# #####+##### ### @ #####????????? | | ????#?# # % # ##+###????????????? | | ??????#% ####### ????????????????? | | # # #???# ## ## ??????????????? | | # " " ! ##???#+#### #? """ ""????????????? | | # " " # # ????# #? ????????????? | | # " "?# # ??##+#####???????????? | | # ? # # ?????????????????????? | | # ? " # # < ?????????????????????? | | ??" " # """" # ????????????????????? | | ? " " """" # #????????????????????? | | ? """" #######????????????????????? | | ? %""???? #??????????????????????????? | | ? """ # ????? ??????????????????????????? | | ? "T ""??????????????????????????????????? | | ???" "???????????????????????????????????? | | ??? # "???????????????????????????????????? | | ??? # "???????????????????????????????????? | | ?????? ???????????????????????????????????? | | ???????? ????????????????????????????????????? | | ?????????????????????????????????????????????????? | | ?????????????????????????????????????????????????? | | ?????????????????????????????????????????????????? | | ?????????????????????????????????????????????????? | | ?????????????????????????????????????????????????? | +----------------------------------------------------+ Best States ------------- Heat Dissipation 85 Energy Generation 45 Energy Capacity 1300 Matter Stores 300 Matter Capacity 300 Sight Range 21 Robot Scan Range 15 Terrain Scan Range 16 Terrain Scan Density 10 Additional Mass Support 20 Armor Coverage 1260 Resistance: KI 30 Resistance: TH 15 Resistance: EX 15 Resistance: EM 15 Resistance: I 15 Resistance: S 15 Resistance: P 15 Propulsion Shielding 66 Weapon Shielding 100 Phase Shifting 15 Evasion (%) 55 Targeting Accuracy 12 Target Analysis 10 Core Analysis 8 Recoil Reduction 4 Offensive Hacking 36 Defensive Hacking 14 Authchip Count 3 Item Schematics ----------------- Imp. Light Armor Plating | -8/Materials | Scanalyzed Huge Storage Unit | -8/Materials | Hacked Hacking Suite | -8/Materials | Hacked Multitool | -8/Materials | Scanalyzed Enh. Flamer | -7/Zion | Free Battle Cannon | -7/Zion | Free Ripper | -7/Zion | Free Arc Thrower | -7/Zion | Free Weapon Cycler | -7/Zion | Archive Cloaking Device | -7/Zion | Archive Core Analyzer | -7/Zion | Archive Imp. Particle Charger | -7/Zion | Archive Plasma Cannon | -7/Zion | Archive Point Defense System | -7/Zion | Archive Variable Charge Gun | -7/Zion | Archive Kinecellerator | -7/Zion | Archive Power Amplifier | -7/Zion | Archive Med. Treads | -7/Zion | Archive Adv. Heat Sink | -7/Zion | Archive Recalibrator | -7/Zion | Archive Stasis Canceller | -7/Zion | Archive Gravmag System | -7/Zion | Archive Hvy. Machine Gun | -7/Zion | Archive Adv. Hacking Suite | -6/Factory | Scanalyzed Combat Drone Bay | -6/Data Miner | Free Lgt. Regenerative Plating | -6/Data Miner | Free Cld. Nuclear Pulse Thruster | -6/Data Miner | Free Imp. Matter Compressor | -6/Data Miner | Free Tiamat Missile Launcher | -6/Data Miner | Free Adv. Medium Treads | -6/Data Miner | Free Imp. Armor Integrity Analyzer | -6/Data Miner | Free Hardcell Cannon | -6/Data Miner | Free Adv. Force Field | -6/Data Miner | Free Robot Schematics ------------------ S-27 Virus | -7/Zion | Archive K-01 Serf | -7/Zion | Archive A-02 Transporter | -7/Zion | Archive X-82 Rainmaker | -7/Zion | Archive R-10 Processor | -6/Data Miner | Free A-15 Conveyor | -6/Data Miner | Free G-50 Soldier | -6/Data Miner | Free H-66 Slayer | -6/Data Miner | Free Fabricated ------------ Huge Storage Unit | x1 | -7/Factory Adv. Hacking Suite | x1 | -5/Factory | Authchip Combat Drone Bay | x1 | -5/Factory | Authchip Alien Tech Used ----------------- None Achievements -------------- What Is This Thing? Challenges ------------ None Game ------ Seed GhostCompactDetonator Manual? 0 Play Time 04:44:47 Cumulative 344.9 hours Start 2024.09.26 @ 21:59:53 End 2024.09.29 @ 18:27:45 Sessions 9 Manual Loads 0 Difficulty Rogue Special Mode None Game No. 248 Rogue 243 Adventurer 5 Explorer 0 Win Type - Total 7 Types 4/0/3/0/0/0/0/0/0 Lore% 67 Gallery% 85 Achievement% 70 Wizard Run 0 Options --------- Layout 2 ASCII 0 Keyboard 0 Movement Mouse Keybinds 0 Fullscreen 2 Font 24/Smallcaps Map View 50x44 Zoom Use 0% Tactical HUD 1 Map Filters NONE Filters NONE Steam 1 RUN: 7dbfe24f-362c-4d61-95ae-28c1f5bf541c